bitfinex-derivatives/quotes_SOLF0:USTF0_20250409
["timestamp","ask_amount","ask_price","bid_price","bid_amount"]
[1744177151943,42.4127164,105.45,105.42,0.06822238]
[1744177152139,9.4923,105.43,105.42,0.06822238]
[1744177152435,4.5683,105.44,105.37,2.1856]
[1744177152941,9.4939,105.42,105.38,9.4967]
[1744177153143,51.8339,105.42,105.38,9.4967]
[1744177153334,0.05982454,105.41,105.37,2.1856]
[1744177153634,0.05982454,105.41,105.38,9.4966]
[1744177154636,0.05982454,105.41,105.37,2.1856]
[1744177154836,0.05982454,105.41,105.38,42.34]
[1744177155138,42.34,105.45,105.38,73.38878411]
[1744177155536,42.34,105.45,105.43,9.4918]
[1744177156443,42.34,105.45,105.43,9.55162454]
[1744177156444,42.40315535,105.45,105.43,9.55162454]
[1744177157042,42.40315535,105.45,105.43,0.05982454]
[1744177157745,0.06315535,105.45,105.43,0.05982454]
[1744177158344,0.06315535,105.45,105.44,9.4914]
[1744177158645,0.06315535,105.45,105.43,0.05982454]
[1744177158943,0.06315535,105.45,105.44,9.4914]
[1744177159445,0.06315535,105.45,105.43,0.05982454]
[1744177159642,0.06315535,105.45,105.43,9.55152454]
[1744177159944,0.06315535,105.45,105.43,0.05982454]
[1744177160145,0.06315535,105.45,105.44,9.4914]
[1744177160344,0.06315535,105.45,105.43,0.05982454]
[1744177161140,0.06315535,105.45,105.43,9.55182454]
[1744177161442,0.06315535,105.45,105.43,0.05982454]
[1744177161842,0.06315535,105.45,105.44,9.4914]
[1744177163649,42.3,105.51,105.47,9.4881]
[1744177163849,42.3,105.51,105.43,2.41802454]
[1744177164050,42.3,105.51,105.44,73.34878411]
[1744177164350,2.2489,105.52,105.5,9.486]
[1744177164537,2.2489,105.52,105.44,73.34878411]
[1744177164841,11.7333,105.52,105.44,73.34878411]
[1744177165043,0.07014547,105.49,105.47,0.07063605]
[1744177166648,9.55744547,105.49,105.47,0.07063605]
[1744177167448,42.28,105.48,105.42,2.3005]
[1744177167949,51.7683,105.48,105.42,2.3005]
[1744177168150,9.4883,105.48,105.42,2.3005]
[1744177168351,51.7683,105.48,105.45,9.4902]
[1744177168654,0.06906347,105.46,105.44,0.05234384]
[1744177168956,0.06906347,105.46,105.44,9.54324384]
[1744177170653,0.06906347,105.46,105.44,0.05234384]
[1744177170852,9.55936347,105.46,105.44,0.05234384]
[1744177172952,0.06906347,105.46,105.44,9.54364384]
[1744177173656,9.55876347,105.46,105.44,0.05234384]
[1744177173955,0.06906347,105.46,105.44,0.05234384]
[1744177174155,0.06906347,105.46,105.44,9.54334384]
[1744177174355,0.06906347,105.46,105.44,0.05234384]
[1744177174557,9.55936347,105.46,105.44,0.05234384]
[1744177174958,0.06906347,105.46,105.44,0.05234384]
[1744177175153,0.06906347,105.46,105.44,9.54324384]
[1744177175355,0.06906347,105.46,105.44,0.05234384]
[1744177175655,9.55916347,105.46,105.44,0.05234384]
[1744177175844,0.06906347,105.46,105.44,0.05234384]
[1744177176249,4.76,105.51,105.44,0.05234384]
[1744177176454,4.76,105.51,105.44,2.26]
[1744177176652,9.4861,105.5,105.47,9.4883]
[1744177177662,9.55386369,105.5,105.47,9.56063283]
[1744177178665,0.06776369,105.5,105.47,0.07233283]
[1744177179066,0.06776369,105.5,105.49,9.4869]
[1744177179763,0.06776369,105.5,105.48,9.4875]
[1744177179959,0.06776369,105.5,105.47,2.40423283]
[1744177180270,0.06776369,105.5,105.47,0.07233283]
[1744177180766,9.55426369,105.5,105.47,0.07233283]
[1744177181567,0.06776369,105.5,105.47,0.07233283]
[1744177182170,9.4878,105.48,105.47,0.07233283]
[1744177185967,44.4882,105.49,105.41,2.3275]
[1744177186270,4.6223,105.47,105.39,42.28]
[1744177186569,42.28,105.46,105.39,44.5944]
[1744177186771,42.28,105.46,105.4,31.04878411]
[1744177187163,0.06570141,105.44,105.42,0.04907448]
[1744177188071,0.06570141,105.44,105.43,9.4923]
[1744177191572,1.41e-06,105.44,105.43,9.4923]
[1744177191876,1.41e-06,105.44,105.43,11.8659]
[1744177192064,1.41e-06,105.44,105.43,14.2752]
[1744177192265,42.26,105.52,105.43,14.2629]
[1744177192474,42.26,105.52,105.44,33.42658411]
[1744177192671,42.26,105.52,105.45,42.26]
[1744177193072,51.7442,105.52,105.45,42.26]
[1744177193275,42.26,105.52,105.45,42.26]
[1744177193474,0.06848593,105.5,105.47,0.0724032]
[1744177194473,0.06848593,105.5,105.48,9.4872]
[1744177197270,0.06848593,105.5,105.49,9.4869]
[1744177198974,56.277,105.55,105.51,9.4843]
[1744177199982,0.065317,105.54,105.52,0.07273396]
[1744177200679,54.72064546,105.59,105.52,0.07273396]
[1744177200872,52.53234546,105.59,105.51,73.29585149]
[1744177201279,52.53234546,105.59,105.56,9.4798]
[1744177201484,52.53234546,105.59,105.51,73.29585149]
[1744177201980,0.06938738,105.56,105.54,9.55270272]
[1744177202182,0.06938738,105.56,105.54,0.07100272]
[1744177203180,0.06938738,105.56,105.54,9.55300272]
[1744177204482,0.06938738,105.56,105.55,9.4815]
[1744177205076,0.06938738,105.56,105.54,0.07100272]
[1744177205077,42.24,105.6,105.57,9.4795]
[1744177205782,2.4125,105.61,105.57,9.4795]
[1744177206284,2.4125,105.61,105.54,44.4747]
[1744177206584,42.3056417,105.6,105.58,0.06156846]
[1744177206976,9.4787,105.59,105.58,0.06156846]
[1744177207682,51.7830417,105.6,105.58,0.06156846]
[1744177208782,9.4779,105.59,105.58,0.06156846]
[1744177210874,42.3056417,105.6,105.53,2.3046]
[1744177211081,31.05585149,105.59,105.5,4.6782]
[1744177211483,9.4825,105.54,105.51,9.4847]
[1744177212086,9.54755121,105.54,105.51,9.54665646]
[1744177213991,9.4833,105.53,105.51,0.06195646]
[1744177214690,9.54795121,105.54,105.51,9.54705646]
[1744177214885,0.06505121,105.54,105.51,0.06195646]
[1744177215392,9.54765121,105.54,105.51,9.54635646]
[1744177216094,0.06505121,105.54,105.51,9.54635646]
[1744177216391,0.06505121,105.54,105.51,0.06195646]
[1744177216791,0.06505121,105.54,105.51,2.32025646]
[1744177217090,0.06505121,105.54,105.53,9.4833]
[1744177217891,0.06505121,105.54,105.52,9.4838]
[1744177218492,0.06505121,105.54,105.51,11.80485646]
[1744177218895,0.06505121,105.54,105.51,9.54655646]
[1744177219098,9.54805121,105.54,105.51,9.54655646]
[1744177219395,0.06505121,105.54,105.51,0.06195646]
[1744177220397,9.4839,105.53,105.51,0.06195646]
[1744177220588,0.06505121,105.54,105.51,9.54695646]
[1744177220788,0.06505121,105.54,105.51,0.06195646]
[1744177220989,9.4834,105.53,105.51,0.06195646]
[1744177221487,9.4842,105.52,105.51,0.06195646]
[1744177222093,42.22,105.53,105.51,0.06195646]
[1744177222694,42.22,105.53,105.51,9.54665646]
[1744177223093,42.22,105.53,105.51,0.06195646]
[1744177223596,51.7037,105.53,105.51,0.06195646]
[1744177225399,42.22,105.53,105.51,9.54705646]
[1744177227001,51.7034,105.53,105.51,9.54705646]
[1744177227299,51.7034,105.53,105.51,0.06195646]
[1744177228205,42.22,105.53,105.51,9.54685646]
[1744177229602,0.06505121,105.54,105.51,9.54685646]
[1744177229804,9.54795121,105.54,105.51,9.54685646]
[1744177230007,0.06505121,105.54,105.51,9.54685646]
[1744177230195,0.06505121,105.54,105.51,0.06195646]
[1744177230998,0.06505121,105.54,105.52,9.4837]
[1744177231202,0.06505121,105.54,105.51,0.06195646]
[1744177232006,9.54785121,105.54,105.51,9.54705646]
[1744177232701,0.06505121,105.54,105.52,9.4838]
[1744177232905,0.06505121,105.54,105.51,0.06195646]
[1744177233302,0.06505121,105.54,105.52,9.4841]
[1744177233604,0.06505121,105.54,105.51,0.06195646]
[1744177233801,0.06505121,105.54,105.53,9.4833]
[1744177234504,262.66172737,105.65,105.53,28.88896705]
[1744177234710,599.95614546,105.62,105.55,19.40896705]
[1744177235110,566.83276705,105.62,105.54,42.18]
[1744177235306,11.6778,105.61,105.55,19.40896705]
[1744177235809,0.06201801,105.59,105.57,9.54221278]
[1744177236102,0.06201801,105.59,105.57,0.06341278]
[1744177236317,0.06201801,105.59,105.58,9.4788]
[1744177236601,0.06201801,105.59,105.57,0.06341278]
[1744177237407,51.72041801,105.59,105.57,0.06341278]
[1744177237808,42.24201801,105.59,105.57,0.06341278]
[1744177238412,42.24201801,105.59,105.58,9.4788]
[1744177238798,0.06201801,105.59,105.58,9.4788]
[1744177239413,42.18,105.62,105.6,9.4762]
[1744177239708,42.18,105.62,105.57,61.58896705]
[1744177239904,42.18,105.62,105.58,4.7203]
[1744177240109,42.16,105.65,105.59,19.40896705]
[1744177240305,42.16,105.65,105.61,19.40896705]
[1744177240717,0.06911926,105.64,105.62,0.07182793]
[1744177241118,9.54341926,105.64,105.62,0.07182793]
[1744177241620,0.06911926,105.64,105.62,0.07182793]
[1744177242319,9.54321926,105.64,105.62,0.07182793]
[1744177242726,0.06911926,105.64,105.62,0.07182793]
[1744177243727,0.06911926,105.64,105.62,9.54662793]
[1744177244520,9.54301926,105.64,105.62,0.07182793]
[1744177246020,9.4743,105.63,105.62,0.07182793]
[1744177247330,9.54301926,105.64,105.62,0.07182793]
[1744177248630,0.06911926,105.64,105.62,9.54702793]
[1744177248822,0.06911926,105.64,105.62,0.07182793]
[1744177249332,0.06911926,105.64,105.62,9.54672793]
[1744177249628,0.06911926,105.64,105.62,0.07182793]
[1744177251133,9.4743,105.63,105.62,0.07182793]
[1744177255037,9.4765,105.61,105.57,42.18]
[1744177255228,9.4765,105.61,105.58,9.4782]
[1744177255835,9.4773,105.6,105.57,9.4795]
[1744177256132,0.0723062,105.61,105.58,0.06513513]
[1744177256437,9.4784,105.59,105.58,0.06513513]
[1744177256935,9.4775,105.6,105.58,0.06513513]
[1744177257639,9.4779,105.59,105.58,0.06513513]
[1744177258237,9.4775,105.6,105.58,0.06513513]
[1744177259738,0.06522363,105.61,105.59,9.4779]
[1744177260439,0.06522363,105.61,105.6,9.477]
[1744177262940,0.06522363,105.61,105.59,31.18776705]
[1744177263140,0.06522363,105.61,105.59,11.7788]
[1744177263640,0.06522363,105.61,105.6,9.477]
[1744177266539,0.06522363,105.61,105.59,2.3013]
[1744177266744,0.06522363,105.61,105.58,0.06513513]
[1744177267345,9.4779,105.59,105.58,0.06513513]
[1744177267542,51.5779,105.59,105.58,0.06513513]
[1744177268145,42.1,105.59,105.58,0.06513513]
[1744177268844,51.5779,105.59,105.58,0.06513513]
[1744177269546,42.1,105.59,105.58,0.06513513]
[1744177270047,51.5779,105.59,105.58,0.06513513]
[1744177271544,42.1,105.59,105.58,0.06513513]
[1744177272945,51.5779,105.59,105.58,0.06513513]
[1744177274947,9.4798,105.57,105.54,9.482]
[1744177275148,9.4798,105.57,105.53,42.1]
[1744177275447,9.4798,105.57,105.54,9.4824]
[1744177276052,9.54876352,105.57,105.54,9.54910234]
[1744177276247,0.06896352,105.57,105.55,9.4814]
[1744177276445,0.06896352,105.57,105.54,0.06670234]
[1744177276845,9.54906352,105.57,105.54,9.54870234]
[1744177277041,0.06896352,105.57,105.54,0.06670234]
[1744177277247,42.1,105.56,105.54,0.06670234]
[1744177277550,9.4815,105.55,105.54,0.06670234]
[1744177278749,9.4838,105.53,105.5,9.4858]
[1744177279356,42.1,105.53,105.48,46.5476]
[1744177279956,0.06259662,105.52,105.51,9.4846]
[1744177282249,0.06259662,105.52,105.5,9.4856]
[1744177282855,0.06259662,105.52,105.49,0.06235349]
[1744177283455,0.06259662,105.52,105.49,19.47132054]
[1744177284453,0.06259662,105.52,105.51,9.4851]
[1744177286658,0.06259662,105.52,105.5,9.4857]
[1744177287160,0.06259662,105.52,105.49,0.06235349]
[1744177287661,0.06259662,105.52,105.5,9.4853]
[1744177287860,0.06259662,105.52,105.49,0.06235349]
[1744177288462,0.06259662,105.52,105.5,9.486]
[1744177289159,0.06259662,105.52,105.51,9.4851]
[1744177291163,0.06259662,105.52,105.5,9.4856]
[1744177292367,0.06259662,105.52,105.49,19.47132054]
[1744177293967,0.06259662,105.52,105.5,9.4854]
[1744177297763,0.06259662,105.52,105.49,19.47132054]
[1744177300272,0.06259662,105.52,105.51,9.4851]
[1744177303277,0.06259662,105.52,105.51,21.90582942]
[1744177306581,0.06259662,105.52,105.51,12.42072942]
[1744177306778,0.06259662,105.52,105.5,9.4858]
[1744177308183,9.54719662,105.52,105.49,21.96948291]
[1744177308374,0.06259662,105.52,105.49,0.06235349]
[1744177309081,12.48332604,105.52,105.49,0.06235349]
[1744177309279,9.486,105.5,105.49,0.06235349]
[1744177309469,51.546,105.5,105.49,0.06235349]
[1744177311081,9.4882,105.48,105.45,21.91092942]
[1744177311278,42.06,105.5,105.44,4.5224]
[1744177311578,42.06,105.5,105.45,19.43011958]
[1744177311880,42.06,105.5,105.48,9.4874]
[1744177312284,42.13040875,105.5,105.48,9.55848035]
[1744177312488,51.61650875,105.5,105.48,0.07108035]
[1744177312672,42.13040875,105.5,105.48,0.07108035]
[1744177313079,0.07040875,105.5,105.49,9.4869]
[1744177313981,96.85904546,105.56,105.48,61.50119993]
[1744177314184,94.53234546,105.56,105.5,19.43011958]
[1744177314686,94.53234546,105.56,105.53,9.4825]
[1744177314979,94.59942548,105.56,105.53,9.4825]
[1744177315185,94.59942548,105.56,105.53,9.55448385]
[1744177315484,94.59942548,105.56,105.54,9.4824]
[1744177316087,42.06708002,105.56,105.54,9.4824]
[1744177316283,42.06708002,105.56,105.53,0.07198385]
[1744177316483,0.06708002,105.56,105.53,0.07198385]
[1744177317483,0.06708002,105.56,105.54,9.482]
[1744177317883,0.06708002,105.56,105.53,0.07198385]
[1744177318088,42.06708002,105.56,105.53,0.07198385]
[1744177318283,9.4821,105.55,105.53,0.07198385]
[1744177320395,9.4824,105.54,105.53,0.07198385]
[1744177320685,42.06708002,105.56,105.53,0.07198385]
[1744177321890,9.4824,105.54,105.53,0.07198385]
[1744177322592,9.4855,105.51,105.46,19.43011958]
[1744177323092,9.4861,105.5,105.47,9.4882]
[1744177323383,42.0,105.52,105.46,19.43011958]
[1744177323786,0.07299261,105.5,105.48,0.06102458]
[1744177323988,0.07299261,105.5,105.49,9.4869]
[1744177325586,0.07299261,105.5,105.48,28.97854416]
[1744177325889,0.07299261,105.5,105.48,0.06102458]
[1744177326286,0.07299261,105.5,105.49,9.4869]
[1744177326893,0.07299261,105.5,105.48,0.06102458]
[1744177327492,9.55929261,105.5,105.48,0.06102458]
[1744177327792,0.07299261,105.5,105.48,0.06102458]
[1744177328093,0.07299261,105.5,105.48,9.54832458]
[1744177328286,0.07299261,105.5,105.48,0.06102458]
[1744177328593,0.07299261,105.5,105.48,9.54822458]
[1744177328892,0.07299261,105.5,105.48,0.06102458]
[1744177330496,0.07299261,105.5,105.49,9.4869]
[1744177331191,0.07299261,105.5,105.48,0.06102458]
[1744177332693,0.07299261,105.5,105.49,9.4869]
[1744177337987,0.07299261,105.5,105.49,21.91411865]
[1744177339197,0.07299261,105.5,105.49,9.4869]
[1744177341695,0.07299261,105.5,105.48,9.54832458]
[1744177342699,0.07299261,105.5,105.49,9.4869]
[1744177344202,0.07299261,105.5,105.48,9.54852458]
[1744177344594,0.07299261,105.5,105.48,0.06102458]
[1744177344892,0.07299261,105.5,105.49,9.4869]
[1744177346198,0.07299261,105.5,105.48,9.54832458]
[1744177346694,9.55959261,105.5,105.48,0.06102458]
[1744177346896,41.94,105.49,105.48,0.06102458]
[1744177347398,51.4269,105.49,105.48,0.06102458]
[1744177347790,54.36721865,105.49,105.42,12.42721865]
[1744177347985,2.312,105.51,105.42,12.42721865]
[1744177348191,12.42721865,105.57,105.5,12.42721865]
[1744177348501,12.42721865,105.58,105.52,12.42721865]
[1744177348691,54.36721865,105.58,105.53,12.42721865]
[1744177348886,0.07010753,105.54,105.52,0.05484839]
[1744177349092,0.07010753,105.54,105.5,12.42721865]
[1744177349298,0.07010753,105.54,105.52,0.05484839]
[1744177349504,0.07010753,105.54,105.53,9.4833]
[1744177350496,41.94,105.58,105.56,9.4803]
[1744177351001,17.74228636,105.59,105.57,9.4797]
[1744177351200,2.4118,105.59,105.57,9.4797]
[1744177351406,2.4118,105.59,105.54,19.40976565]
[1744177351700,2.4784156,105.59,105.57,9.5454325]
[1744177351899,2.4784156,105.59,105.57,0.0662325]
[1744177352294,11.9564156,105.59,105.57,0.0662325]
[1744177352595,2.4784156,105.59,105.57,0.0662325]
[1744177353410,0.0666156,105.59,105.57,0.0662325]
[1744177354607,0.0666156,105.59,105.57,9.5454325]
[1744177355103,0.0666156,105.59,105.57,0.0662325]
[1744177355794,41.92,105.58,105.57,0.0662325]
[1744177356503,51.3988,105.58,105.57,0.0662325]
[1744177358606,51.3988,105.58,105.57,3.25e-05]
[1744177358901,9.4828,105.54,105.5,2.3449]
[1744177359102,51.4028,105.54,105.5,2.3449]
[1744177359296,41.92,105.54,105.51,9.4847]
[1744177359491,41.92,105.54,105.5,2.3449]
[1744177359811,41.92,105.54,105.51,9.4845]
[1744177360104,0.06954436,105.53,105.51,0.05872342]
[1744177360304,0.06954436,105.53,105.52,9.4841]
[1744177363499,41.92,105.6,105.56,9.4801]
[1744177363705,41.92,105.6,105.54,19.40976565]
[1744177364108,41.92,105.6,105.56,19.40976565]
[1744177364801,9.418e-05,105.59,105.57,0.06465521]
[1744177365004,41.92,105.63,105.58,19.40976565]
[1744177365200,41.92,105.63,105.58,21.63816565]
[1744177366011,41.92,105.63,105.6,9.4766]
[1744177366215,0.06401978,105.62,105.6,9.4766]
[1744177366518,0.06401978,105.62,105.59,0.0696253]
[1744177366710,0.06401978,105.62,105.61,9.4761]
[1744177368014,0.06401978,105.62,105.59,0.0696253]
[1744177368718,9.477,105.6,105.59,0.0696253]
[1744177369618,51.377,105.6,105.59,0.0696253]
[1744177369823,9.4786,105.59,105.54,41.92]
[1744177370309,41.9,105.6,105.54,41.92]
[1744177370619,51.3774,105.6,105.56,9.4799]
[1744177370913,51.3774,105.6,105.57,0.07008103]
[1744177371121,0.07088419,105.59,105.57,0.07008103]
[1744177372327,0.07088419,105.59,105.57,9.54968103]
[1744177374533,9.54878419,105.59,105.57,0.07008103]
[1744177375428,9.4788,105.58,105.57,0.07008103]
[1744177378138,9.4818,105.55,105.52,9.4837]
[1744177378320,41.84,105.56,105.48,79.89202481]
[1744177378727,41.84,105.56,105.48,48.8925]
[1744177379023,72.83952481,105.56,105.48,4.6964]
[1744177379234,0.06090186,105.53,105.51,0.05225563]
[1744177379435,41.84,105.52,105.51,0.05225563]
[1744177379932,0.06090186,105.53,105.51,9.53735563]
[1744177380729,0.06090186,105.53,105.51,0.05225563]
[1744177381629,41.84,105.52,105.51,0.05225563]
[1744177381930,51.3242,105.52,105.51,0.05225563]
[1744177383928,9.4865,105.5,105.47,9.4886]
[1744177385031,9.55435708,105.5,105.47,9.4886]
[1744177385238,9.487,105.49,105.46,9.4892]
[1744177386647,0.06785708,105.5,105.45,4.5918]
[1744177387339,9.55425708,105.5,105.47,9.4883]
[1744177387936,41.86,105.49,105.45,2.2357]
[1744177388142,41.86,105.49,105.43,2.2548]
[1744177388553,0.06049432,105.47,105.43,2.2548]
[1744177389237,0.06049432,105.47,105.44,19.42630297]
[1744177389443,41.86,105.52,105.49,9.4864]
[1744177389841,41.86,105.52,105.46,19.42630297]
[1744177390138,41.86,105.52,105.5,9.4856]
[1744177390341,41.86,105.52,105.46,19.42630297]
[1744177390741,0.06876786,105.5,105.48,0.06007951]
[1744177391746,0.06876786,105.5,105.48,9.54737951]
[1744177392243,0.06876786,105.5,105.49,9.4869]
[1744177393342,0.06876786,105.5,105.48,9.54737951]
[1744177393641,0.06876786,105.5,105.48,0.06007951]
[1744177394040,0.06876786,105.5,105.49,9.4869]
[1744177394640,6.786e-05,105.5,105.49,9.4869]
[1744177394837,41.86,105.56,105.53,9.4827]
[1744177395842,51.3409,105.56,105.53,9.4827]
[1744177396041,51.40087678,105.56,105.53,9.55351915]
[1744177397245,41.91997678,105.56,105.53,0.07081915]
[1744177397447,0.05997678,105.56,105.53,0.07081915]
[1744177398044,0.05997678,105.56,105.55,9.4815]
[1744177398745,0.05997678,105.56,105.54,9.4817]
[1744177399450,0.05997678,105.56,105.55,9.4815]
[1744177400447,9.4774,105.6,105.54,24.16350297]
[1744177400641,19.42630297,105.62,105.54,26.34550297]
[1744177400848,41.86,105.63,105.54,26.34550297]
[1744177401040,41.86,105.63,105.54,68.20550297]
[1744177401643,0.06199722,105.6,105.54,68.20550297]
[1744177401847,0.06199722,105.6,105.57,0.06629345]
[1744177402047,41.92199722,105.6,105.57,0.06629345]
[1744177402251,9.478,105.59,105.57,0.06629345]
[1744177403247,51.39949722,105.6,105.57,0.06629345]
[1744177403450,41.92199722,105.6,105.57,0.06629345]
[1744177404145,9.4784,105.59,105.57,0.06629345]
[1744177406550,51.39949722,105.6,105.57,9.54559345]
[1744177407051,9.478,105.59,105.57,0.06629345]
[1744177407242,41.92199722,105.6,105.57,0.06629345]
[1744177407650,9.4786,105.59,105.57,0.06629345]
[1744177408255,9.4788,105.58,105.57,0.06629345]
[1744177408455,41.92199722,105.6,105.57,0.06629345]
[1744177408956,9.4787,105.59,105.57,0.06629345]
[1744177410557,9.4788,105.58,105.57,0.06629345]
[1744177411659,9.4806,105.57,105.53,9.4828]
[1744177412856,0.07132523,105.56,105.54,0.0671852]
[1744177413359,0.07132523,105.56,105.54,9.5494852]
[1744177415249,0.07132523,105.56,105.55,9.4815]
[1744177416058,0.07132523,105.56,105.54,0.0671852]
[1744177416556,9.55242523,105.56,105.54,0.0671852]
[1744177417462,0.07132523,105.56,105.54,0.0671852]
[1744177417963,0.07132523,105.56,105.55,9.4815]
[1744177419060,0.07132523,105.56,105.54,9.5490852]
[1744177419562,0.07132523,105.56,105.55,9.4815]
[1744177421562,0.07132523,105.56,105.54,0.0671852]
[1744177421855,9.4815,105.55,105.54,0.0671852]
[1744177424462,19.4976282,105.56,105.47,41.78]
[1744177424660,41.78,105.57,105.47,41.78]
[1744177424661,21.82470297,105.54,105.47,9.4881]
[1744177424960,46.3047,105.53,105.45,6.7363]
[1744177425664,0.0679319,105.5,105.48,0.05576031]
[1744177426163,9.5545319,105.5,105.48,0.05576031]
[1744177426360,0.0679319,105.5,105.48,0.05576031]
[1744177426557,41.8479319,105.5,105.48,0.05576031]
[1744177427163,9.4869,105.49,105.48,0.05576031]
[1744177428266,51.3344319,105.5,105.48,0.05576031]
[1744177428468,41.8479319,105.5,105.48,0.05576031]
[1744177428965,51.3340319,105.5,105.48,0.05576031]
[1744177431159,9.4869,105.49,105.48,0.05576031]
[1744177431375,41.8479319,105.5,105.42,19.42630297]
[1744177431664,2.3399,105.49,105.4,568.50850297]
[1744177431855,2.3399,105.49,105.42,19.42630297]
[1744177432061,41.78,105.5,105.42,19.42630297]
[1744177432261,41.78,105.5,105.44,19.42630297]
[1744177432456,51.2664,105.5,105.47,9.4886]
[1744177432957,41.85051575,105.5,105.48,9.4874]
[1744177433359,0.07051575,105.5,105.45,4.5933]
[1744177433559,0.07051575,105.5,105.49,9.4869]
[1744177433766,0.07051575,105.5,105.46,61.22630297]
[1744177433966,9.55661575,105.5,105.47,9.4883]
[1744177434564,0.07051575,105.5,105.47,9.4883]
[1744177434765,0.07051575,105.5,105.48,9.4877]
[1744177435062,0.07051575,105.5,105.46,19.42630297]
[1744177435273,41.87051575,105.5,105.45,6.9576]
[1744177435575,41.87051575,105.5,105.46,9.4892]
[1744177436265,9.4875,105.49,105.46,9.4892]
[1744177438771,9.4879,105.48,105.45,16.4477]
[1744177438969,9.4879,105.48,105.45,6.9576]
[1744177439168,9.4879,105.48,105.44,41.8]
[1744177439169,0.06993821,105.48,105.44,41.8]
[1744177439362,0.06993821,105.48,105.47,9.4887]
[1744177440568,3.821e-05,105.48,105.47,9.4887]
[1744177448165,41.72,105.56,105.51,9.4848]
[1744177448564,9.4828,105.54,105.51,9.4848]
[1744177448767,41.72,105.56,105.48,19.42630297]
[1744177448962,41.72,105.56,105.49,21.64120297]
[1744177449168,0.06064501,105.54,105.52,9.4838]
[1744177449364,0.06064501,105.54,105.51,0.06033141]
[1744177449877,0.06064501,105.54,105.53,9.4833]
[1744177451377,0.06064501,105.54,105.52,9.4837]
[1744177451768,0.06064501,105.54,105.51,0.06033141]
[1744177451970,0.06064501,105.54,105.52,9.4838]
[1744177452480,0.06064501,105.54,105.51,0.06033141]
[1744177454277,9.4839,105.53,105.51,0.06033141]
[1744177454678,0.06064501,105.54,105.51,0.06033141]
[1744177454976,41.72,105.53,105.51,0.06033141]
[1744177455475,9.4842,105.52,105.51,0.06033141]
[1744177455674,61.14630297,105.53,105.47,9.4884]
[1744177455869,9.4869,105.5,105.45,21.71290297]
[1744177456070,9.4869,105.5,105.46,9.4891]
[1744177456274,4.5778,105.52,105.45,21.71290297]
[1744177456481,9.4865,105.5,105.45,21.71290297]
[1744177456773,0.06170673,105.49,105.45,21.71290297]
[1744177456970,0.06170673,105.49,105.46,9.489]
[1744177457274,9.54870673,105.49,105.46,9.489]
[1744177459581,9.488,105.48,105.44,41.72]
[1744177459973,41.72,105.47,105.43,2.3739]
[1744177460174,41.72,105.47,105.42,2.3333]
[1744177460477,0.06022709,105.46,105.4,41.72]
[1744177460877,0.06022709,105.46,105.39,21.73930297]
[1744177461178,61.14630297,105.47,105.39,2.313]
[1744177461376,0.06701629,105.44,105.39,2.313]
[1744177461581,9.4928,105.43,105.39,11.8085]
[1744177461877,41.78701629,105.44,105.39,11.8085]
[1744177462277,9.4928,105.43,105.39,11.8085]
[1744177462870,9.4932,105.42,105.39,2.313]
[1744177463277,9.56024085,105.42,105.39,2.313]
[1744177463478,9.56024085,105.42,105.38,14.0555]
[1744177464282,9.56024085,105.42,105.39,9.4959]
[1744177465184,9.4942,105.41,105.38,11.8481]
[1744177465677,0.06704085,105.42,105.38,9.4965]
[1744177465871,0.06704085,105.42,105.39,9.4958]
[1744177466173,0.06704085,105.42,105.37,19.42630297]
[1744177466386,0.06704085,105.42,105.4,9.4942]
[1744177467385,0.06704085,105.42,105.41,9.4941]
[1744177470583,4.085e-05,105.42,105.41,9.4941]
[1744177470784,4.085e-05,105.42,105.41,11.8591]
[1744177473493,4.085e-05,105.42,105.41,72.96540297]
[1744177475893,41.68,105.47,105.44,9.4906]
[1744177477197,41.73976805,105.47,105.44,9.55208972]
[1744177477396,51.22866805,105.47,105.44,9.55208972]
[1744177477596,0.05976805,105.47,105.46,9.4896]
[1744177478802,9.54846805,105.47,105.44,9.55238972]
[1744177479707,9.4897,105.46,105.44,9.55238972]
[1744177479895,0.05976805,105.47,105.44,9.55238972]
[1744177480198,41.73976805,105.47,105.44,9.55238972]
[1744177480401,51.22916805,105.47,105.44,9.55238972]
[1744177482300,9.4896,105.46,105.44,0.06148972]
[1744177482691,41.73976805,105.47,105.44,0.06148972]
[1744177483194,2.3054,105.46,105.44,0.06148972]
[1744177483396,9.4905,105.45,105.44,0.06148972]